[Event "Titled Tuesday Blitz May 23 Early 2023"]
[White "Hua, Lefong"]
[Black "merinasian"]
[WhiteFideId "2602253"]
[WhiteElo "2645"]
[BlackElo "2464"]
[Result "1-0"]
[Round "03"]
[TimeControl "180+2"]
[Date "2023.05.23"]
[WhiteClock "0:00:22"]
[BlackClock "0:00:00"]

1. d4 {[%clk 0:03:00]}  Nf6 {[%clk 0:02:56]} 2. c4 {[%clk 0:02:59]}  e6 {[%clk 0:02:56]} 3. Nc3 {[%clk 0:02:59]}  Bb4 {[%clk 0:02:55]} 4. f3 {[%clk 0:03:00]}  d5 {[%clk 0:02:55]} 5. a3 {[%clk 0:02:59]}  Bxc3+ {[%clk 0:02:54]} 6. bxc3 {[%clk 0:03:00]}  O-O {[%clk 0:02:52]} 7. cxd5 {[%clk 0:03:00]}  exd5 {[%clk 0:02:51]} 8. e3 {[%clk 0:03:00]}  c5 {[%clk 0:02:50]} 9. Bd3 {[%clk 0:03:01]}  Nc6 {[%clk 0:02:49]} 10. Ne2 {[%clk 0:03:01]}  Re8 {[%clk 0:02:43]} 11. O-O {[%clk 0:03:00]}  b6 {[%clk 0:02:28]} 12. Ng3 {[%clk 0:02:59]}  Be6 {[%clk 0:02:17]} 13. Ra2 {[%clk 0:02:43]}  Rc8 {[%clk 0:02:16]} 14. Re2 {[%clk 0:02:42]}  Na5 {[%clk 0:02:07]} 15. Bb1 {[%clk 0:02:31]}  Bd7 {[%clk 0:01:58]} 16. Rfe1 {[%clk 0:02:25]}  Bb5 {[%clk 0:01:55]} 17. Rf2 {[%clk 0:02:25]}  Rc7 {[%clk 0:01:21]} 18. e4 {[%clk 0:02:10]}  dxe4 {[%clk 0:01:12]} 19. fxe4 {[%clk 0:02:10]}  cxd4 {[%clk 0:01:11]} 20. cxd4 {[%clk 0:01:33]}  Rd7 {[%clk 0:01:07]} 21. d5 {[%clk 0:01:26]}  Nc4 {[%clk 0:00:44]} 22. Bg5 {[%clk 0:01:19]}  Rd6 {[%clk 0:00:32]} 23. Nf5 {[%clk 0:01:05]}  Ne5 {[%clk 0:00:13]} 24. Nxd6 {[%clk 0:01:00]}  Qxd6 {[%clk 0:00:14]} 25. Bxf6 {[%clk 0:01:01]}  gxf6 {[%clk 0:00:14]} 26. Re3 {[%clk 0:00:55]}  Ng6 {[%clk 0:00:14]} 27. Qd4 {[%clk 0:00:49]}  Re5 {[%clk 0:00:13]} 28. Ref3 {[%clk 0:00:40]}  Kg7 {[%clk 0:00:09]} 29. g3 {[%clk 0:00:29]}  Kh6 {[%clk 0:00:03]} 30. Rxf6 {[%clk 0:00:26]}  Qxa3 {[%clk 0:00:00]} 31. Qd2+ {[%clk 0:00:22]} 1-0


[Site "https://www.chess.com"]

[Event "Titled Tuesday Blitz May 23 Early 2023"]
[White "Ilkhomi, Jaloliddin"]
[Black "Avazkhonov, Alikhon"]
[WhiteFideId "14700948"]
[BlackFideId "14208504"]
[WhiteElo "2045"]
[BlackElo "1739"]
[Result "1-0"]
[Round "03"]
[TimeControl "180+2"]
[Date "2023.05.23"]
[WhiteClock "0:02:24"]
[BlackClock "0:00:04"]

1. Nf3 {[%clk 0:03:00]}  d5 {[%clk 0:02:59]} 2. d4 {[%clk 0:03:00]}  c6 {[%clk 0:02:59]} 3. c3 {[%clk 0:03:00]}  Bg4 {[%clk 0:03:00]} 4. Bf4 {[%clk 0:03:01]}  Nf6 {[%clk 0:03:00]} 5. Nbd2 {[%clk 0:03:01]}  Nbd7 {[%clk 0:02:58]} 6. Qb3 {[%clk 0:03:02]}  Qb6 {[%clk 0:02:55]} 7. e3 {[%clk 0:03:03]}  e6 {[%clk 0:02:54]} 8. Ne5 {[%clk 0:03:03]}  Bf5 {[%clk 0:02:49]} 9. Bd3 {[%clk 0:03:02]}  Bxd3 {[%clk 0:02:44]} 10. Nxd3 {[%clk 0:03:02]}  Be7 {[%clk 0:02:43]} 11. O-O {[%clk 0:03:01]}  O-O {[%clk 0:02:43]} 12. Rae1 {[%clk 0:03:01]}  Qxb3 {[%clk 0:02:42]} 13. axb3 {[%clk 0:03:01]}  Ne4 {[%clk 0:02:42]} 14. Nxe4 {[%clk 0:02:58]}  dxe4 {[%clk 0:02:43]} 15. Ne5 {[%clk 0:02:58]}  Nxe5 {[%clk 0:02:40]} 16. Bxe5 {[%clk 0:02:59]}  a5 {[%clk 0:02:34]} 17. Ra1 {[%clk 0:02:58]}  Ra6 {[%clk 0:02:10]} 18. Ra2 {[%clk 0:02:58]}  Rfa8 {[%clk 0:02:10]} 19. Rfa1 {[%clk 0:02:58]}  Bd8 {[%clk 0:01:57]} 20. Bd6 {[%clk 0:02:56]}  f5 {[%clk 0:01:35]} 21. Kf1 {[%clk 0:02:56]}  Kf7 {[%clk 0:01:34]} 22. Ke2 {[%clk 0:02:57]}  Ke8 {[%clk 0:01:32]} 23. f3 {[%clk 0:02:57]}  Kd7 {[%clk 0:01:32]} 24. Be5 {[%clk 0:02:57]}  exf3+ {[%clk 0:01:30]} 25. gxf3 {[%clk 0:02:56]}  Bf6 {[%clk 0:01:24]} 26. Bxf6 {[%clk 0:02:56]}  gxf6 {[%clk 0:01:25]} 27. Rg1 {[%clk 0:02:55]}  Re8 {[%clk 0:01:19]} 28. Rg7+ {[%clk 0:02:55]}  Re7 {[%clk 0:01:17]} 29. Rg8 {[%clk 0:02:52]}  Re8 {[%clk 0:01:17]} 30. Rg3 {[%clk 0:02:47]}  e5 {[%clk 0:01:12]} 31. dxe5 {[%clk 0:02:42]}  fxe5 {[%clk 0:01:13]} 32. Ra1 {[%clk 0:02:42]}  c5 {[%clk 0:01:11]} 33. Rd1+ {[%clk 0:02:42]}  Rd6 {[%clk 0:01:09]} 34. Rxd6+ {[%clk 0:02:35]}  Kxd6 {[%clk 0:01:10]} 35. Rh3 {[%clk 0:02:32]}  Re7 {[%clk 0:01:06]} 36. Kd3 {[%clk 0:02:32]}  e4+ {[%clk 0:00:59]} 37. fxe4 {[%clk 0:02:29]}  fxe4+ {[%clk 0:00:54]} 38. Kc4 {[%clk 0:02:29]}  Rg7 {[%clk 0:00:21]} 39. Rh6+ {[%clk 0:02:28]}  Rg6 {[%clk 0:00:20]} 40. Rxg6+ {[%clk 0:02:22]}  hxg6 {[%clk 0:00:21]} 41. Kb5 {[%clk 0:02:22]}  Ke5 {[%clk 0:00:08]} 42. Kxc5 {[%clk 0:02:23]}  Kf5 {[%clk 0:00:08]} 43. Kd4 {[%clk 0:02:23]}  g5 {[%clk 0:00:05]} 44. h3 {[%clk 0:02:23]}  g4 {[%clk 0:00:04]} 45. hxg4+ {[%clk 0:02:24]} 1-0


[Site "https://www.chess.com"]

[Event "Titled Tuesday Blitz May 23 Early 2023"]
[White "UNSTOPPABLE_LEGEND"]
[Black "Skliarov, Viktor"]
[BlackFideId "14106736"]
[WhiteElo "2454"]
[BlackElo "2317"]
[Result "0-1"]
[Round "03"]
[TimeControl "180+2"]
[Date "2023.05.23"]
[WhiteClock "0:00:00"]
[BlackClock "0:00:41"]

1. Nf3 {[%clk 0:02:59]}  g6 {[%clk 0:03:00]} 2. g3 {[%clk 0:02:56]}  Bg7 {[%clk 0:03:00]} 3. Bg2 {[%clk 0:02:57]}  Nf6 {[%clk 0:03:01]} 4. O-O {[%clk 0:02:57]}  O-O {[%clk 0:03:02]} 5. c4 {[%clk 0:02:57]}  c6 {[%clk 0:03:02]} 6. d4 {[%clk 0:02:53]}  d5 {[%clk 0:03:03]} 7. Ne5 {[%clk 0:02:52]}  Nbd7 {[%clk 0:03:00]} 8. Nc3 {[%clk 0:02:49]}  Nxe5 {[%clk 0:02:55]} 9. dxe5 {[%clk 0:02:46]}  Ng4 {[%clk 0:02:56]} 10. cxd5 {[%clk 0:02:42]}  Nxe5 {[%clk 0:02:43]} 11. Bf4 {[%clk 0:02:34]}  cxd5 {[%clk 0:02:16]} 12. Nxd5 {[%clk 0:02:35]}  e6 {[%clk 0:02:13]} 13. Ne3 {[%clk 0:02:29]}  Qb6 {[%clk 0:01:39]} 14. Bxe5 {[%clk 0:02:07]}  Bxe5 {[%clk 0:01:38]} 15. Nc4 {[%clk 0:02:08]}  Qc7 {[%clk 0:01:35]} 16. Qb3 {[%clk 0:01:29]}  Bg7 {[%clk 0:01:11]} 17. Rfd1 {[%clk 0:01:26]}  Rb8 {[%clk 0:01:09]} 18. Rac1 {[%clk 0:01:21]}  b5 {[%clk 0:01:06]} 19. Nd6 {[%clk 0:01:20]}  Qa5 {[%clk 0:00:57]} 20. Nxc8 {[%clk 0:00:42]}  Rbxc8 {[%clk 0:00:56]} 21. Bb7 {[%clk 0:00:39]}  Rxc1 {[%clk 0:00:49]} 22. Rxc1 {[%clk 0:00:40]}  Rb8 {[%clk 0:00:49]} 23. Bf3 {[%clk 0:00:39]}  h5 {[%clk 0:00:48]} 24. Rd1 {[%clk 0:00:38]}  Qa4 {[%clk 0:00:44]} 25. Rd3 {[%clk 0:00:21]}  h4 {[%clk 0:00:41]} 26. Qxa4 {[%clk 0:00:00]}  bxa4 {[%clk 0:00:41]} 0-1


[Site "https://www.chess.com"]

[Event "Titled Tuesday Blitz May 23 Early 2023"]
[White "Arabidze, Meri"]
[Black "Manukian, Artak"]
[WhiteFideId "13604040"]
[BlackFideId "13301373"]
[WhiteElo "2405"]
[BlackElo "2130"]
[Result "1-0"]
[Round "03"]
[TimeControl "180+2"]
[Date "2023.05.23"]
[WhiteClock "0:00:07"]
[BlackClock "0:00:00"]

1. d4 {[%clk 0:03:00]}  d5 {[%clk 0:02:56]} 2. c4 {[%clk 0:03:01]}  dxc4 {[%clk 0:02:56]} 3. Nf3 {[%clk 0:03:01]}  Nf6 {[%clk 0:02:57]} 4. e3 {[%clk 0:03:02]}  e6 {[%clk 0:02:57]} 5. Bxc4 {[%clk 0:03:02]}  c5 {[%clk 0:02:57]} 6. O-O {[%clk 0:03:00]}  a6 {[%clk 0:02:57]} 7. a4 {[%clk 0:02:58]}  Nc6 {[%clk 0:02:57]} 8. Qe2 {[%clk 0:02:55]}  cxd4 {[%clk 0:02:56]} 9. Rd1 {[%clk 0:02:55]}  Be7 {[%clk 0:02:55]} 10. exd4 {[%clk 0:02:55]}  O-O {[%clk 0:02:51]} 11. Nc3 {[%clk 0:02:56]}  Nb4 {[%clk 0:02:50]} 12. Bg5 {[%clk 0:02:54]}  Bd7 {[%clk 0:02:50]} 13. Ne5 {[%clk 0:02:53]}  Be8 {[%clk 0:02:45]} 14. Qf3 {[%clk 0:02:43]}  Nc6 {[%clk 0:02:31]} 15. Qh3 {[%clk 0:02:38]}  Qc7 {[%clk 0:02:19]} 16. Bd3 {[%clk 0:02:31]}  g6 {[%clk 0:02:07]} 17. Qh4 {[%clk 0:01:39]}  Nh5 {[%clk 0:01:34]} 18. Nxc6 {[%clk 0:01:04]}  Bxg5 {[%clk 0:01:32]} 19. Qxg5 {[%clk 0:01:05]}  Bxc6 {[%clk 0:01:30]} 20. Ne4 {[%clk 0:00:56]}  Bxe4 {[%clk 0:01:22]} 21. Bxe4 {[%clk 0:00:57]}  Rad8 {[%clk 0:01:20]} 22. g3 {[%clk 0:00:41]}  Rd7 {[%clk 0:01:08]} 23. a5 {[%clk 0:00:36]}  Qd8 {[%clk 0:00:53]} 24. Qc5 {[%clk 0:00:30]}  Nf6 {[%clk 0:00:46]} 25. Bg2 {[%clk 0:00:30]}  Nd5 {[%clk 0:00:43]} 26. Rac1 {[%clk 0:00:27]}  Qf6 {[%clk 0:00:19]} 27. Qa7 {[%clk 0:00:26]}  Rfd8 {[%clk 0:00:18]} 28. Bxd5 {[%clk 0:00:25]}  exd5 {[%clk 0:00:17]} 29. Qc5 {[%clk 0:00:19]}  h5 {[%clk 0:00:16]} 30. Re1 {[%clk 0:00:20]}  h4 {[%clk 0:00:16]} 31. Qc3 {[%clk 0:00:15]}  Re7 {[%clk 0:00:13]} 32. Qd3 {[%clk 0:00:14]}  Rde8 {[%clk 0:00:12]} 33. Rxe7 {[%clk 0:00:14]}  Rxe7 {[%clk 0:00:13]} 34. Kg2 {[%clk 0:00:14]}  Kg7 {[%clk 0:00:12]} 35. Rc5 {[%clk 0:00:13]}  hxg3 {[%clk 0:00:11]} 36. hxg3 {[%clk 0:00:13]}  Rd7 {[%clk 0:00:09]} 37. Qf3 {[%clk 0:00:13]}  Qxf3+ {[%clk 0:00:08]} 38. Kxf3 {[%clk 0:00:13]}  Kf6 {[%clk 0:00:09]} 39. b4 {[%clk 0:00:13]}  Ke6 {[%clk 0:00:09]} 40. b5 {[%clk 0:00:14]}  axb5 {[%clk 0:00:09]} 41. Rxb5 {[%clk 0:00:15]}  Kd6 {[%clk 0:00:10]} 42. Kf4 {[%clk 0:00:13]}  Ke6 {[%clk 0:00:09]} 43. g4 {[%clk 0:00:13]}  f6 {[%clk 0:00:09]} 44. f3 {[%clk 0:00:13]}  g5+ {[%clk 0:00:09]} 45. Ke3 {[%clk 0:00:13]}  Kd6 {[%clk 0:00:09]} 46. Kd3 {[%clk 0:00:13]}  Rf7 {[%clk 0:00:06]} 47. Rb6+ {[%clk 0:00:13]}  Kc7 {[%clk 0:00:05]} 48. Rb5 {[%clk 0:00:11]}  Kc6 {[%clk 0:00:05]} 49. Rb6+ {[%clk 0:00:11]}  Kc7 {[%clk 0:00:05]} 50. Ke3 {[%clk 0:00:11]}  f5 {[%clk 0:00:04]} 51. gxf5 {[%clk 0:00:09]}  Rxf5 {[%clk 0:00:04]} 52. Rg6 {[%clk 0:00:09]}  Kb8 {[%clk 0:00:00]} 53. Re6 {[%clk 0:00:07]} 1-0


[Site "https://www.chess.com"]

[Event "Titled Tuesday Blitz May 23 Early 2023"]
[White "Ambartsumova, Karina"]
[Black "Garakov, Mikhael"]
[WhiteFideId "4166299"]
[BlackFideId "4169034"]
[WhiteElo "2240"]
[BlackElo "2347"]
[Result "0-1"]
[Round "03"]
[TimeControl "180+2"]
[Date "2023.05.23"]
[WhiteClock "0:00:00"]
[BlackClock "0:00:44"]

1. e4 {[%clk 0:03:00]}  c5 {[%clk 0:02:59]} 2. Nf3 {[%clk 0:03:00]}  e6 {[%clk 0:02:58]} 3. d4 {[%clk 0:03:00]}  cxd4 {[%clk 0:02:59]} 4. Nxd4 {[%clk 0:03:00]}  Nc6 {[%clk 0:03:00]} 5. Nc3 {[%clk 0:03:00]}  Qc7 {[%clk 0:03:00]} 6. Be2 {[%clk 0:02:58]}  a6 {[%clk 0:03:00]} 7. O-O {[%clk 0:02:55]}  Nf6 {[%clk 0:03:00]} 8. Be3 {[%clk 0:02:53]}  Be7 {[%clk 0:03:00]} 9. f4 {[%clk 0:02:49]}  d6 {[%clk 0:02:59]} 10. Qe1 {[%clk 0:02:49]}  O-O {[%clk 0:02:58]} 11. Qg3 {[%clk 0:02:46]}  Nxd4 {[%clk 0:02:41]} 12. Bxd4 {[%clk 0:02:46]}  d5 {[%clk 0:02:42]} 13. exd5 {[%clk 0:02:19]}  Bc5 {[%clk 0:02:42]} 14. Qf2 {[%clk 0:02:05]}  Bxd4 {[%clk 0:02:38]} 15. Qxd4 {[%clk 0:02:06]}  exd5 {[%clk 0:02:35]} 16. Kh1 {[%clk 0:01:57]}  Bf5 {[%clk 0:02:21]} 17. Bd3 {[%clk 0:01:35]}  Bxd3 {[%clk 0:02:14]} 18. Qxd3 {[%clk 0:01:36]}  Rfd8 {[%clk 0:02:08]} 19. Ne2 {[%clk 0:01:33]}  Rac8 {[%clk 0:01:46]} 20. Nd4 {[%clk 0:01:32]}  Ne4 {[%clk 0:01:45]} 21. c3 {[%clk 0:01:23]}  b5 {[%clk 0:00:58]} 22. Rae1 {[%clk 0:01:03]}  Qc4 {[%clk 0:00:56]} 23. Re3 {[%clk 0:00:36]}  Qxa2 {[%clk 0:00:51]} 24. Re2 {[%clk 0:00:29]}  Qc4 {[%clk 0:00:44]} 25. Qxc4 {[%clk 0:00:26]}  Rxc4 {[%clk 0:00:44]} 26. Ra1 {[%clk 0:00:20]}  b4 {[%clk 0:00:44]} 27. Rxa6 {[%clk 0:00:04]}  bxc3 {[%clk 0:00:44]} 28. bxc3 {[%clk 0:00:02]}  Nxc3 {[%clk 0:00:44]} 29. Rd2 {[%clk 0:00:00]}  Ne4 {[%clk 0:00:44]} 0-1


[Site "https://www.chess.com"]

[Event "Titled Tuesday Blitz May 23 Early 2023"]
[White "Kononenko, Dmitry"]
[Black "KorolDimitriy75"]
[WhiteFideId "14113538"]
[WhiteElo "2198"]
[BlackElo "2443"]
[Result "0-1"]
[Round "03"]
[TimeControl "180+2"]
[Date "2023.05.23"]
[WhiteClock "0:00:34"]
[BlackClock "0:01:24"]

1. e4 {[%clk 0:02:58]}  c5 {[%clk 0:03:00]} 2. Nf3 {[%clk 0:02:57]}  d6 {[%clk 0:03:00]} 3. d4 {[%clk 0:02:58]}  cxd4 {[%clk 0:03:00]} 4. Nxd4 {[%clk 0:02:58]}  Nf6 {[%clk 0:03:01]} 5. Nc3 {[%clk 0:02:59]}  g6 {[%clk 0:03:02]} 6. Bc4 {[%clk 0:02:59]}  Bg7 {[%clk 0:03:02]} 7. Bb3 {[%clk 0:02:59]}  O-O {[%clk 0:03:03]} 8. f3 {[%clk 0:02:59]}  Nc6 {[%clk 0:03:03]} 9. Be3 {[%clk 0:02:59]}  Bd7 {[%clk 0:03:04]} 10. Qd2 {[%clk 0:02:59]}  Qa5 {[%clk 0:03:04]} 11. O-O-O {[%clk 0:02:55]}  Rfc8 {[%clk 0:03:02]} 12. h4 {[%clk 0:02:54]}  Ne5 {[%clk 0:03:02]} 13. Kb1 {[%clk 0:02:55]}  b5 {[%clk 0:03:02]} 14. h5 {[%clk 0:02:53]}  Nc4 {[%clk 0:03:00]} 15. Qd3 {[%clk 0:02:44]}  Nxe3 {[%clk 0:02:49]} 16. Qxe3 {[%clk 0:02:44]}  b4 {[%clk 0:02:46]} 17. Nd5 {[%clk 0:02:24]}  Nxd5 {[%clk 0:02:46]} 18. Bxd5 {[%clk 0:02:24]}  Rab8 {[%clk 0:02:41]} 19. hxg6 {[%clk 0:02:22]}  hxg6 {[%clk 0:02:40]} 20. g4 {[%clk 0:01:59]}  Qc5 {[%clk 0:02:29]} 21. Rh2 {[%clk 0:01:37]}  e6 {[%clk 0:02:00]} 22. Bb3 {[%clk 0:01:34]}  a5 {[%clk 0:01:58]} 23. Nf5 {[%clk 0:00:54]}  exf5 {[%clk 0:01:47]} 24. Qg5 {[%clk 0:00:50]}  Qe5 {[%clk 0:01:28]} 25. c4 {[%clk 0:00:35]}  Qxh2 {[%clk 0:01:25]} 26. c5 {[%clk 0:00:34]}  Qxb2# {[%clk 0:01:24]} 0-1


[Site "https://www.chess.com"]

[Event "Titled Tuesday Blitz May 23 Early 2023"]
[White "Mackster23"]
[Black "Agibileg, Uurtsaikh"]
[BlackFideId "4901606"]
[WhiteElo "2442"]
[BlackElo "2353"]
[Result "0-1"]
[Round "03"]
[TimeControl "180+2"]
[Date "2023.05.23"]
[WhiteClock "0:00:00"]
[BlackClock "0:00:06"]

1. e4 {[%clk 0:03:00]}  c5 {[%clk 0:02:59]} 2. Nf3 {[%clk 0:02:41]}  e6 {[%clk 0:02:51]} 3. d4 {[%clk 0:02:34]}  cxd4 {[%clk 0:02:49]} 4. Nxd4 {[%clk 0:02:35]}  Nc6 {[%clk 0:02:47]} 5. Nc3 {[%clk 0:02:34]}  Qc7 {[%clk 0:02:39]} 6. g3 {[%clk 0:02:31]}  a6 {[%clk 0:02:31]} 7. Bg2 {[%clk 0:02:29]}  d6 {[%clk 0:02:28]} 8. O-O {[%clk 0:02:26]}  Bd7 {[%clk 0:02:28]} 9. Re1 {[%clk 0:02:20]}  Be7 {[%clk 0:02:28]} 10. Nxc6 {[%clk 0:02:14]}  bxc6 {[%clk 0:02:27]} 11. Na4 {[%clk 0:02:03]}  e5 {[%clk 0:02:23]} 12. c4 {[%clk 0:02:02]}  c5 {[%clk 0:02:23]} 13. Nc3 {[%clk 0:02:01]}  Nf6 {[%clk 0:02:23]} 14. Bg5 {[%clk 0:01:58]}  Be6 {[%clk 0:02:21]} 15. b3 {[%clk 0:01:51]}  O-O {[%clk 0:02:19]} 16. Qd3 {[%clk 0:01:45]}  Ne8 {[%clk 0:02:10]} 17. Bxe7 {[%clk 0:01:45]}  Qxe7 {[%clk 0:02:11]} 18. Rad1 {[%clk 0:01:40]}  Rd8 {[%clk 0:02:10]} 19. f4 {[%clk 0:01:29]}  Nf6 {[%clk 0:01:47]} 20. f5 {[%clk 0:00:59]}  Bc8 {[%clk 0:01:46]} 21. h3 {[%clk 0:00:54]}  Bb7 {[%clk 0:01:44]} 22. g4 {[%clk 0:00:52]}  h6 {[%clk 0:01:44]} 23. Qg3 {[%clk 0:00:51]}  g5 {[%clk 0:01:20]} 24. fxg6 {[%clk 0:00:41]}  fxg6 {[%clk 0:01:20]} 25. h4 {[%clk 0:00:39]}  Kg7 {[%clk 0:01:20]} 26. Bf3 {[%clk 0:00:37]}  Nh7 {[%clk 0:01:16]} 27. Rf1 {[%clk 0:00:32]}  Rf7 {[%clk 0:01:10]} 28. Be2 {[%clk 0:00:24]}  Rdf8 {[%clk 0:01:10]} 29. Rxf7+ {[%clk 0:00:23]}  Rxf7 {[%clk 0:01:11]} 30. Rf1 {[%clk 0:00:21]}  Rxf1+ {[%clk 0:01:10]} 31. Bxf1 {[%clk 0:00:22]}  Nf8 {[%clk 0:01:03]} 32. Nd5 {[%clk 0:00:19]}  Bxd5 {[%clk 0:01:03]} 33. exd5 {[%clk 0:00:20]}  Qf6 {[%clk 0:00:53]} 34. Bd3 {[%clk 0:00:19]}  Qf4 {[%clk 0:00:50]} 35. Qxf4 {[%clk 0:00:14]}  exf4 {[%clk 0:00:51]} 36. Kf2 {[%clk 0:00:13]}  Nd7 {[%clk 0:00:50]} 37. Kf3 {[%clk 0:00:12]}  Ne5+ {[%clk 0:00:50]} 38. Ke4 {[%clk 0:00:12]}  g5 {[%clk 0:00:16]} 39. hxg5 {[%clk 0:00:13]}  hxg5 {[%clk 0:00:17]} 40. Be2 {[%clk 0:00:13]}  Kf6 {[%clk 0:00:18]} 41. Bd1 {[%clk 0:00:11]}  a5 {[%clk 0:00:18]} 42. Be2 {[%clk 0:00:11]}  Nd7 {[%clk 0:00:16]} 43. Bd1 {[%clk 0:00:11]}  Kg6 {[%clk 0:00:13]} 44. Be2 {[%clk 0:00:11]}  Nf6+ {[%clk 0:00:13]} 45. Kf3 {[%clk 0:00:10]}  Kf7 {[%clk 0:00:13]} 46. Bd3 {[%clk 0:00:10]}  Nd7 {[%clk 0:00:13]} 47. Be2 {[%clk 0:00:10]}  Kg6 {[%clk 0:00:09]} 48. Bd3+ {[%clk 0:00:10]}  Kf6 {[%clk 0:00:09]} 49. Ke4 {[%clk 0:00:09]}  Ne5 {[%clk 0:00:09]} 50. Be2 {[%clk 0:00:09]}  Ng6 {[%clk 0:00:09]} 51. Bd1 {[%clk 0:00:08]}  Nh4 {[%clk 0:00:10]} 52. Be2 {[%clk 0:00:08]}  Ng2 {[%clk 0:00:10]} 53. Bd1 {[%clk 0:00:07]}  Ne3 {[%clk 0:00:11]} 54. Be2 {[%clk 0:00:05]}  Nc2 {[%clk 0:00:11]} 55. Bd3 {[%clk 0:00:04]}  Nb4 {[%clk 0:00:10]} 56. Bb1 {[%clk 0:00:03]}  Na6 {[%clk 0:00:09]} 57. a3 {[%clk 0:00:03]}  Nb8 {[%clk 0:00:09]} 58. Bd3 {[%clk 0:00:02]}  Nd7 {[%clk 0:00:09]} 59. Be2 {[%clk 0:00:03]}  Nf8 {[%clk 0:00:08]} 60. Bd1 {[%clk 0:00:03]}  Ng6 {[%clk 0:00:08]} 61. Be2 {[%clk 0:00:04]}  Nh4 {[%clk 0:00:08]} 62. Bd1 {[%clk 0:00:05]}  Ng2 {[%clk 0:00:09]} 63. Be2 {[%clk 0:00:05]}  Ne3 {[%clk 0:00:09]} 64. Bf3 {[%clk 0:00:03]}  Nf1 {[%clk 0:00:08]} 65. Bd1 {[%clk 0:00:03]}  Nd2+ {[%clk 0:00:06]} 66. Kd3 {[%clk 0:00:03]}  Nf1 {[%clk 0:00:04]} 67. Ke4 {[%clk 0:00:02]}  Ng3+ {[%clk 0:00:04]} 68. Kf3 {[%clk 0:00:02]}  Ke5 {[%clk 0:00:05]} 69. Bc2 {[%clk 0:00:01]}  Nf1 {[%clk 0:00:06]} 70. Ke2 {[%clk 0:00:00]}  Ne3 {[%clk 0:00:06]} 0-1


[Site "https://www.chess.com"]

[Event "Titled Tuesday Blitz May 23 Early 2023"]
[White "Kleiman, Jake"]
[Black "Pinto, Daniel"]
[WhiteFideId "2020041"]
[BlackFideId "3303144"]
[WhiteElo "2608"]
[BlackElo "2145"]
[Result "1-0"]
[Round "03"]
[TimeControl "180+2"]
[Date "2023.05.23"]
[WhiteClock "0:00:09"]
[BlackClock "0:00:06"]

1. d4 {[%clk 0:02:57]}  Nf6 {[%clk 0:02:59]} 2. Nf3 {[%clk 0:02:55]}  g6 {[%clk 0:02:58]} 3. Nc3 {[%clk 0:02:52]}  Bg7 {[%clk 0:02:58]} 4. e4 {[%clk 0:02:52]}  d6 {[%clk 0:02:59]} 5. h3 {[%clk 0:02:52]}  O-O {[%clk 0:03:00]} 6. Be2 {[%clk 0:02:52]}  c5 {[%clk 0:03:00]} 7. Be3 {[%clk 0:02:51]}  cxd4 {[%clk 0:02:44]} 8. Nxd4 {[%clk 0:02:51]}  Nc6 {[%clk 0:02:45]} 9. O-O {[%clk 0:02:51]}  Bd7 {[%clk 0:02:33]} 10. a4 {[%clk 0:02:47]}  Nxd4 {[%clk 0:02:29]} 11. Bxd4 {[%clk 0:02:47]}  Bc6 {[%clk 0:02:30]} 12. Qd3 {[%clk 0:02:33]}  Qa5 {[%clk 0:02:26]} 13. f4 {[%clk 0:02:29]}  e5 {[%clk 0:02:23]} 14. Be3 {[%clk 0:02:16]}  d5 {[%clk 0:02:07]} 15. exd5 {[%clk 0:01:16]}  Nxd5 {[%clk 0:02:08]} 16. Nxd5 {[%clk 0:01:12]}  Qxd5 {[%clk 0:02:09]} 17. Qxd5 {[%clk 0:01:11]}  Bxd5 {[%clk 0:02:10]} 18. f5 {[%clk 0:01:09]}  gxf5 {[%clk 0:02:00]} 19. Rxf5 {[%clk 0:01:04]}  Be4 {[%clk 0:01:20]} 20. Rf2 {[%clk 0:01:04]}  Bxc2 {[%clk 0:01:21]} 21. Bf3 {[%clk 0:01:03]}  e4 {[%clk 0:01:14]} 22. Rxc2 {[%clk 0:01:00]}  exf3 {[%clk 0:01:15]} 23. gxf3 {[%clk 0:01:00]}  Rfe8 {[%clk 0:01:12]} 24. Kf2 {[%clk 0:00:58]}  Rac8 {[%clk 0:00:27]} 25. Rac1 {[%clk 0:00:57]}  Rxc2+ {[%clk 0:00:28]} 26. Rxc2 {[%clk 0:00:58]}  Bf6 {[%clk 0:00:28]} 27. b3 {[%clk 0:00:50]}  Bh4+ {[%clk 0:00:25]} 28. Ke2 {[%clk 0:00:44]}  Bg5 {[%clk 0:00:25]} 29. Rc3 {[%clk 0:00:44]}  Kg7 {[%clk 0:00:13]} 30. Kf2 {[%clk 0:00:41]}  Rxe3 {[%clk 0:00:12]} 31. Rxe3 {[%clk 0:00:42]}  Bxe3+ {[%clk 0:00:12]} 32. Kxe3 {[%clk 0:00:42]}  Kg6 {[%clk 0:00:12]} 33. Kf4 {[%clk 0:00:29]}  Kh5 {[%clk 0:00:12]} 34. Kg3 {[%clk 0:00:19]}  Kg5 {[%clk 0:00:13]} 35. f4+ {[%clk 0:00:18]}  Kf5 {[%clk 0:00:13]} 36. Kf3 {[%clk 0:00:18]}  h5 {[%clk 0:00:07]} 37. Ke3 {[%clk 0:00:12]}  Ke6 {[%clk 0:00:04]} 38. Ke4 {[%clk 0:00:12]}  f5+ {[%clk 0:00:04]} 39. Kd4 {[%clk 0:00:12]}  Kd6 {[%clk 0:00:04]} 40. b4 {[%clk 0:00:10]}  a6 {[%clk 0:00:02]} 41. h4 {[%clk 0:00:07]}  b6 {[%clk 0:00:01]} 42. a5 {[%clk 0:00:06]}  b5 {[%clk 0:00:01]} 43. Kc3 {[%clk 0:00:05]}  Kd5 {[%clk 0:00:02]} 44. Kd3 {[%clk 0:00:05]}  Ke6 {[%clk 0:00:02]} 45. Ke3 {[%clk 0:00:04]}  Kd6 {[%clk 0:00:02]} 46. Kd4 {[%clk 0:00:05]}  Ke6 {[%clk 0:00:02]} 47. Kc5 {[%clk 0:00:05]}  Ke7 {[%clk 0:00:02]} 48. Kc6 {[%clk 0:00:04]}  Ke6 {[%clk 0:00:02]} 49. Kb6 {[%clk 0:00:04]}  Kd5 {[%clk 0:00:03]} 50. Kxa6 {[%clk 0:00:05]}  Kc4 {[%clk 0:00:03]} 51. Kb6 {[%clk 0:00:06]}  Kxb4 {[%clk 0:00:04]} 52. a6 {[%clk 0:00:06]}  Kc3 {[%clk 0:00:05]} 53. a7 {[%clk 0:00:07]}  b4 {[%clk 0:00:05]} 54. a8=Q {[%clk 0:00:08]}  b3 {[%clk 0:00:06]} 55. Qa1+ {[%clk 0:00:08]}  b2 {[%clk 0:00:07]} 56. Qb1 {[%clk 0:00:09]}  Kb3 {[%clk 0:00:06]} 57. Kc5 {[%clk 0:00:09]} 1-0


[Site "https://www.chess.com"]

[Event "Titled Tuesday Blitz May 23 Early 2023"]
[White "Toktomushev, Teimur"]
[Black "Lopez Mulet, Inigo"]
[WhiteFideId "14176726"]
[BlackFideId "22235620"]
[WhiteElo "2116"]
[BlackElo "2289"]
[Result "0-1"]
[Round "03"]
[TimeControl "180+2"]
[Date "2023.05.23"]
[WhiteClock "0:00:00"]
[BlackClock "0:02:51"]

1. d4 {[%clk 0:03:00]}  b6 {[%clk 0:03:00]} 2. e4 {[%clk 0:02:53]}  Bb7 {[%clk 0:03:00]} 3. Bd3 {[%clk 0:02:53]}  e6 {[%clk 0:03:00]} 4. Ne2 {[%clk 0:02:38]}  d5 {[%clk 0:03:01]} 5. Nbc3 {[%clk 0:02:22]}  c5 {[%clk 0:03:01]} 6. exd5 {[%clk 0:02:01]}  exd5 {[%clk 0:03:02]} 7. Nf4 {[%clk 0:01:47]}  Nf6 {[%clk 0:03:01]} 8. O-O {[%clk 0:01:35]}  c4 {[%clk 0:03:01]} 9. Bf5 {[%clk 0:01:20]}  g6 {[%clk 0:03:00]} 10. Bh3 {[%clk 0:01:06]}  Be7 {[%clk 0:03:01]} 11. b3 {[%clk 0:01:05]}  O-O {[%clk 0:03:01]} 12. g3 {[%clk 0:01:01]}  a6 {[%clk 0:02:59]} 13. Bg2 {[%clk 0:01:00]}  b5 {[%clk 0:02:59]} 14. bxc4 {[%clk 0:00:49]}  bxc4 {[%clk 0:03:00]} 15. Rb1 {[%clk 0:00:50]}  Qd7 {[%clk 0:02:59]} 16. Re1 {[%clk 0:00:44]}  Rd8 {[%clk 0:02:58]} 17. Nfxd5 {[%clk 0:00:22]}  Nxd5 {[%clk 0:02:54]} 18. Nxd5 {[%clk 0:00:22]}  Bxd5 {[%clk 0:02:54]} 19. Bxd5 {[%clk 0:00:22]}  Qxd5 {[%clk 0:02:54]} 20. Rxe7 {[%clk 0:00:23]}  Nc6 {[%clk 0:02:52]} 21. Re3 {[%clk 0:00:06]}  Nxd4 {[%clk 0:02:53]} 22. Bb2 {[%clk 0:00:06]}  Nf5 {[%clk 0:02:51]} 23. Qxd5 {[%clk 0:00:07]}  Rxd5 {[%clk 0:02:52]} 24. Re2 {[%clk 0:00:05]}  Rb8 {[%clk 0:02:52]} 25. Ree1 {[%clk 0:00:03]}  Rdb5 {[%clk 0:02:52]} 26. g4 {[%clk 0:00:00]}  Nh4 {[%clk 0:02:51]} 0-1


[Site "https://www.chess.com"]